fUSD/lending_fUSD_20260514
["ID","MTS","AMOUNT","RATE_DAILY","PERIOD"]
[422239261,1778743844000,-500.0,0.00016888,2]
[422239263,1778743844000,-500.0,0.00016888,2]
[422239267,1778743844000,-151.0,0.00016888,2]
[422239262,1778743844000,-151.0,0.00016888,2]
[422239272,1778743844000,-500.0,0.00016888,2]
[422239270,1778743844000,-500.0,0.00016888,2]
[422239273,1778743844000,-174.61919141,0.00016888,2]
[422239271,1778743844000,-151.0,0.00016888,2]
[422239268,1778743844000,-500.0,0.00016888,2]
[422239266,1778743844000,-1328.27659266,0.00016888,2]
[422239265,1778743844000,-500.0,0.00016888,2]
[422239269,1778743844000,-151.0,0.00016888,2]
[422239264,1778743844000,-151.0,0.00016888,2]
[422239290,1778743845000,-500.0,0.00016888,2]
[422239296,1778743845000,-151.0,0.00016888,2]
[422239298,1778743845000,-500.0,0.00016888,2]
[422239307,1778743845000,-152.0,0.00016888,2]
[422239311,1778743845000,-151.0,0.00016888,2]
[422239310,1778743845000,-152.0,0.00016888,2]
[422239283,1778743845000,-151.0,0.00016888,2]
[422239309,1778743845000,-500.0,0.00016888,2]
[422239300,1778743845000,-152.0,0.00016888,2]
[422239301,1778743845000,-151.0,0.00016888,2]
[422239306,1778743845000,-500.0,0.00016888,2]
[422239304,1778743845000,-152.0,0.00016888,2]
[422239308,1778743845000,-151.0,0.00016888,2]
[422239289,1778743845000,-151.0,0.00016888,2]
[422239288,1778743845000,-151.0,0.00016888,2]
[422239274,1778743845000,-151.0,0.00016888,2]
[422239275,1778743845000,-333.35903652,0.00016888,2]
[422239278,1778743845000,-500.0,0.00016888,2]
[422239277,1778743845000,-151.0,0.00016888,2]
[422239276,1778743845000,-500.0,0.00016888,2]
[422239279,1778743845000,-151.0,0.00016888,2]
[422239281,1778743845000,-151.0,0.00016888,2]
[422239286,1778743845000,-500.0,0.00016888,2]
[422239291,1778743845000,-152.0,0.00016888,2]
[422239294,1778743845000,-165.13253407,0.00016888,2]
[422239280,1778743845000,-500.0,0.00016888,2]
[422239282,1778743845000,-285.48397148,0.00016888,2]
[422239303,1778743845000,-500.0,0.00016888,2]
[422239285,1778743845000,-151.0,0.00016888,2]
[422239287,1778743845000,-152.0,0.00016888,2]
[422239293,1778743845000,-151.0,0.00016888,2]
[422239305,1778743845000,-151.0,0.00016888,2]
[422239284,1778743845000,-500.0,0.00016888,2]
[422239313,1778743845000,-152.0,0.00016888,2]
[422239333,1778743845000,-268.10175656,0.00016888,2]
[422239331,1778743845000,-1934.38338737,0.00016888,2]
[422239335,1778743845000,-219.23011724,0.00016888,2]
[422239336,1778743845000,-151.0,0.00016888,2]
[422239337,1778743845000,-227.34163157,0.00016888,2]
[422239338,1778743845000,-235.75327194,0.00016888,2]
[422239332,1778743845000,-151.0,0.00016888,2]
[422239341,1778743845000,-1653.97861362,0.00016923,2]
[422239340,1778743845000,-151.0,0.00016888,2]
[422239343,1778743845000,-2971.29124975,0.00014342,2]
[422239345,1778743845000,-8011.66471938,0.00014342,2]
[422239342,1778743845000,-1400.18565884,0.00014342,2]
[422239344,1778743845000,-1266.7371,0.00014342,2]
[422239312,1778743845000,-415.80975932,0.00016888,2]
[422239339,1778743845000,-224.37775721,0.00016888,2]
[422239327,1778743845000,-151.0,0.00016888,2]
[422239324,1778743845000,-151.0,0.00016888,2]
[422239328,1778743845000,-151.0,0.00016888,2]
[422239326,1778743845000,-151.0,0.00016888,2]
[422239316,1778743845000,-151.0,0.00016888,2]
[422239314,1778743845000,-151.0,0.00016888,2]
[422239319,1778743845000,-152.0,0.00016888,2]
[422239318,1778743845000,-151.0,0.00016888,2]
[422239322,1778743845000,-151.0,0.00016888,2]
[422239317,1778743845000,-152.0,0.00016888,2]
[422239315,1778743845000,-152.0,0.00016888,2]
[422239321,1778743845000,-152.0,0.00016888,2]
[422239323,1778743845000,-152.0,0.00016888,2]
[422239334,1778743845000,-151.0,0.00016888,2]
[422239325,1778743845000,-152.0,0.00016888,2]
[422239329,1778743845000,-151.0,0.00016888,2]
[422239330,1778743845000,-151.0,0.00016888,2]
[422239320,1778743845000,-151.0,0.00016888,2]
[422239347,1778743846000,-253.52,0.00014342,2]
[422239350,1778743846000,-1125.9410727,0.00014342,2]
[422239348,1778743846000,-944.28805924,0.00014342,2]
[422239351,1778743846000,-5668.67614547,0.000138,2]
[422239352,1778743846000,-314235.39903477,0.000138,2]
[422239349,1778743846000,-1418.55030482,0.00014342,2]
[422239354,1778743847000,-929.27452614,0.000138,2]
[422239353,1778743847000,-9594.79998017,0.000138,2]
[422239431,1778743913000,-150.0,0.00013608,2]
[422239433,1778744450000,299.48,6.502e-05,2]
[422239435,1778744450000,299.48,7.16e-05,2]
[422239434,1778744450000,299.48,6.831e-05,2]
[422239439,1778744451000,299.48,8.475e-05,2]
[422239438,1778744451000,299.48,8.146e-05,2]
[422239437,1778744451000,299.48,7.817e-05,2]
[422239436,1778744451000,299.48,7.489e-05,2]
[422239440,1778744452000,299.48,8.804e-05,2]
[422239441,1778744452000,299.48,9.133e-05,2]
[422239442,1778744452000,299.48,9.461e-05,2]
[422239443,1778744452000,299.48,9.79e-05,2]
[422239445,1778744579000,153.02722891,0.00027397,120]
[422239448,1778744589000,-144.93792356,0.00010448,2]
[422239447,1778744589000,-253.08279409,0.00010283,2]
[422239446,1778744589000,-299.48,0.00010119,2]
[422239449,1778744730000,392.64430754,0.0001,2]
[422239457,1778744752000,-299.48,0.00011434,2]
[422239458,1778744752000,-250.0,0.00011493,2]
[422239456,1778744752000,-250.0,0.00011131,2]
[422239455,1778744752000,-300.0,0.00011131,2]
[422239452,1778744752000,-299.48,0.00010777,2]
[422239453,1778744752000,-299.48,0.00011105,2]
[422239459,1778744752000,-299.48,0.00011763,2]
[422239451,1778744752000,-150.0,0.00010551,2]
[422239450,1778744752000,-154.54207644,0.00010448,2]
[422239454,1778744752000,-250.0,0.00011131,2]
[422239460,1778744752000,-299.48,0.00012092,2]
[422239463,1778744752000,-157.0,0.00012357,2]
[422239462,1778744752000,-4013.68,0.00012314,2]
[422239464,1778744752000,-300.0,0.00012357,2]
[422239465,1778744752000,-1895.848635,0.00012358,2]
[422239466,1778744752000,-299.48,0.00012421,2]
[422239468,1778744752000,-227.26,0.00012501,2]
[422239469,1778744752000,-299.48,0.00012749,2]
[422239470,1778744752000,-2000.0,0.00012816,2]
[422239471,1778744752000,-166.85,0.00012817,2]
[422239472,1778744752000,-150.12,0.00012857,2]
[422239473,1778744752000,-158.74,0.00012885,2]
[422239461,1778744752000,-1200.0,0.00012313,2]
[422239467,1778744752000,-500.0,0.00012444,2]
[422239474,1778744753000,-250.0,0.00013065,2]
[422239475,1778744753000,-529.59928856,0.0001322,2]
[422239476,1778744765000,295.19,0.00027397,120]
[422239477,1778744947000,-232.30634274,0.00010451,2]
[422239478,1778744989000,-150.0,0.00010451,2]
[422239479,1778744993000,-150.0,0.00010451,2]
[422239488,1778745031000,-1169.96,0.000126,2]
[422239489,1778745031000,-1699.25,0.00012643,2]
[422239487,1778745031000,-298.64,0.00012577,2]
[422239485,1778745031000,-305.65355876,0.00012557,2]
[422239486,1778745031000,-14668.23,0.00012558,2]
[422239484,1778745031000,-894.34644124,0.00012557,2]
[422239483,1778745031000,-300.0,0.00012557,2]
[422239482,1778745031000,-1106.55355879,0.00010451,2]
[422239529,1778745032000,-500.0,0.00013627,2]
[422239526,1778745032000,-500.0,0.00013627,2]
[422239525,1778745032000,-500.0,0.00013627,2]
[422239523,1778745032000,-500.0,0.00013627,2]
[422239527,1778745032000,-407.94896475,0.00013627,2]
[422239522,1778745032000,-500.0,0.00013627,2]
[422239531,1778745032000,-500.0,0.00013627,2]
[422239530,1778745032000,-500.0,0.00013627,2]
[422239521,1778745032000,-500.0,0.00013627,2]
[422239524,1778745032000,-500.0,0.00013627,2]
[422239532,1778745032000,-500.0,0.00013627,2]
[422239528,1778745032000,-500.0,0.00013627,2]
[422239534,1778745032000,-500.0,0.00013627,2]
[422239538,1778745032000,-500.0,0.00013627,2]
[422239535,1778745032000,-500.0,0.00013627,2]
[422239537,1778745032000,-500.0,0.00013627,2]
[422239533,1778745032000,-500.0,0.00013627,2]
[422239518,1778745032000,-218.48441117,0.00013627,2]
[422239540,1778745032000,-514.99074434,0.00013627,2]
[422239536,1778745032000,-500.0,0.00013627,2]
[422239543,1778745032000,-500.0,0.00013627,2]
[422239539,1778745032000,-500.0,0.00013627,2]
[422239542,1778745032000,-500.0,0.00013627,2]
[422239541,1778745032000,-500.0,0.00013627,2]
[422239545,1778745032000,-500.0,0.00013627,2]
[422239549,1778745032000,-500.0,0.00013627,2]
[422239544,1778745032000,-500.0,0.00013627,2]
[422239515,1778745032000,-500.0,0.00013627,2]
[422239519,1778745032000,-343.25269583,0.00013627,2]
[422239517,1778745032000,-500.0,0.00013627,2]
[422239490,1778745032000,-1631.19,0.00012672,2]
[422239497,1778745032000,-685.43971144,0.0001322,2]
[422239492,1778745032000,-1000.0,0.00012806,2]
[422239491,1778745032000,-2215.72,0.00012698,2]
[422239494,1778745032000,-172.4849161,0.0001312,2]
[422239495,1778745032000,-9999.99,0.0001312,2]
[422239496,1778745032000,-9071.63,0.0001312,2]
[422239493,1778745032000,-173.03,0.00012827,2]
[422239498,1778745032000,-150.12,0.00013285,2]
[422239500,1778745032000,-172.48491608,0.00013378,2]
[422239499,1778745032000,-2197.21,0.00013338,2]
[422239501,1778745032000,-161.58832768,0.00013468,2]
[422239516,1778745032000,-229.05786489,0.00013627,2]
[422239502,1778745032000,-1713.02494908,0.00013536,2]
[422239504,1778745032000,-22503.63640658,0.00013536,2]
[422239506,1778745032000,-2552.3,0.00013539,2]
[422239507,1778745032000,-150.99,0.00013539,2]
[422239508,1778745032000,-999.99,0.00013539,2]
[422239509,1778745032000,-700.0,0.000136,4]
[422239511,1778745032000,-160.08281973,0.00013618,2]
[422239510,1778745032000,-4292.8,0.00013608,2]
[422239512,1778745032000,-500.0,0.00013627,2]
[422239513,1778745032000,-150.0,0.00013627,2]
[422239548,1778745032000,-500.0,0.00013627,2]
[422239520,1778745032000,-500.0,0.00013627,2]
[422239514,1778745032000,-370.94851059,0.00013627,2]
[422239505,1778745032000,-150.0,0.00013538,2]
[422239556,1778745032000,-500.0,0.00013627,2]
[422239554,1778745032000,-500.0,0.00013627,2]
[422239555,1778745032000,-500.0,0.00013627,2]
[422239581,1778745032000,-593.88476602,0.00013627,2]
[422239592,1778745032000,-593.88476602,0.00013627,2]
[422239584,1778745032000,-593.88476602,0.00013627,2]
[422239583,1778745032000,-593.88476602,0.00013627,2]
[422239587,1778745032000,-593.88476602,0.00013627,2]
[422239580,1778745032000,-593.88476602,0.00013627,2]
[422239588,1778745032000,-593.88476602,0.00013627,2]
[422239590,1778745032000,-593.88476602,0.00013627,2]
[422239585,1778745032000,-593.88476602,0.00013627,2]
[422239586,1778745032000,-593.88476602,0.00013627,2]
[422239589,1778745032000,-593.88476602,0.00013627,2]
[422239593,1778745032000,-593.88476602,0.00013627,2]
[422239591,1778745032000,-593.88476602,0.00013627,2]
[422239594,1778745032000,-593.88476602,0.00013627,2]
[422239605,1778745032000,-595.68441681,0.00013627,2]
[422239602,1778745032000,-595.68441681,0.00013627,2]
[422239603,1778745032000,-595.68441681,0.00013627,2]
[422239597,1778745032000,-593.88476602,0.00013627,2]
[422239595,1778745032000,-593.88476602,0.00013627,2]
[422239596,1778745032000,-593.88476602,0.00013627,2]
[422239601,1778745032000,-593.88476602,0.00013627,2]
[422239604,1778745032000,-595.68441681,0.00013627,2]
[422239598,1778745032000,-593.88476602,0.00013627,2]
[422239600,1778745032000,-593.88476602,0.00013627,2]
[422239606,1778745032000,-595.68441681,0.00013627,2]
[422239607,1778745032000,-595.68441681,0.00013627,2]
[422239599,1778745032000,-593.88476602,0.00013627,2]
[422239577,1778745032000,-593.88476602,0.00013627,2]
[422239582,1778745032000,-593.88476602,0.00013627,2]
[422239575,1778745032000,-593.88476602,0.00013627,2]
[422239550,1778745032000,-500.0,0.00013627,2]
[422239547,1778745032000,-500.0,0.00013627,2]
[422239546,1778745032000,-500.0,0.00013627,2]
[422239552,1778745032000,-500.0,0.00013627,2]
[422239553,1778745032000,-500.0,0.00013627,2]
[422239551,1778745032000,-500.0,0.00013627,2]
[422239558,1778745032000,-500.0,0.00013627,2]
[422239559,1778745032000,-500.0,0.00013627,2]
[422239562,1778745032000,-593.88476602,0.00013627,2]
[422239576,1778745032000,-593.88476602,0.00013627,2]
[422239557,1778745032000,-500.0,0.00013627,2]
[422239563,1778745032000,-593.88476602,0.00013627,2]
[422239560,1778745032000,-271.01458838,0.00013627,2]
[422239561,1778745032000,-593.88476602,0.00013627,2]
[422239564,1778745032000,-593.88476602,0.00013627,2]
[422239566,1778745032000,-593.88476602,0.00013627,2]
[422239565,1778745032000,-593.88476602,0.00013627,2]
[422239568,1778745032000,-593.88476602,0.00013627,2]
[422239570,1778745032000,-593.88476602,0.00013627,2]
[422239569,1778745032000,-593.88476602,0.00013627,2]
[422239572,1778745032000,-593.88476602,0.00013627,2]
[422239571,1778745032000,-593.88476602,0.00013627,2]
[422239578,1778745032000,-593.88476602,0.00013627,2]
[422239574,1778745032000,-593.88476602,0.00013627,2]
[422239567,1778745032000,-593.88476602,0.00013627,2]
[422239573,1778745032000,-593.88476602,0.00013627,2]
[422239579,1778745032000,-593.88476602,0.00013627,2]
[422239617,1778745033000,-595.68441681,0.00013627,2]
[422239611,1778745033000,-595.68441681,0.00013627,2]
[422239612,1778745033000,-595.68441681,0.00013627,2]
[422239613,1778745033000,-595.68441681,0.00013627,2]
[422239608,1778745033000,-595.68441681,0.00013627,2]
[422239609,1778745033000,-595.68441681,0.00013627,2]
[422239615,1778745033000,-595.68441681,0.00013627,2]
[422239610,1778745033000,-595.68441681,0.00013627,2]
[422239616,1778745033000,-595.68441681,0.00013627,2]
[422239614,1778745033000,-595.68441681,0.00013627,2]
[422239621,1778745033000,-595.68441681,0.00013627,2]
[422239620,1778745033000,-595.68441681,0.00013627,2]
[422239622,1778745033000,-595.68441681,0.00013627,2]
[422239619,1778745033000,-595.68441681,0.00013627,2]
[422239624,1778745033000,-185987.28323742,0.00013628,2]
[422239626,1778745033000,-43343.79974249,0.00013628,2]
[422239627,1778745033000,-43243.37734072,0.00013628,2]
[422239623,1778745033000,-595.68441681,0.00013627,2]
[422239625,1778745033000,-30796.55066028,0.00013628,2]
[422239618,1778745033000,-595.68441681,0.00013627,2]
[422239632,1778745037000,-856.80447894,0.00013628,2]
[422239631,1778745037000,-7828.38621622,0.00013628,2]
[422239657,1778745040000,-1400.0,0.000137,5]
[422239660,1778745040000,-150.12,0.00013714,2]
[422239643,1778745040000,-1852.42,0.00013675,2]
[422239653,1778745040000,-772.5,0.00013699,2]
[422239658,1778745040000,-2500.0,0.000137,2]
[422239655,1778745040000,-200.0,0.00013699,2]
[422239656,1778745040000,-5000.0,0.000137,2]
[422239665,1778745040000,-500.0,0.00013799,2]
[422239661,1778745040000,-164.28,0.0001372,2]
[422239662,1778745040000,-1101.9106375,0.00013736,2]
[422239673,1778745040000,-501.43600188,0.00013799,2]
[422239664,1778745040000,-280.42087399,0.00013798,2]
[422239651,1778745040000,-617.41,0.00013699,2]
[422239667,1778745040000,-500.0,0.00013799,2]
[422239659,1778745040000,-33147.836,0.000137,2]
[422239654,1778745040000,-414.31,0.00013699,2]
[422239648,1778745040000,-500.0,0.00013698,2]
[422239650,1778745040000,-166.66,0.00013699,2]
[422239636,1778745040000,-718.79301249,0.00013628,2]
[422239635,1778745040000,-19.98748176,0.00013628,2]
[422239637,1778745040000,-934381.39678037,0.00013628,2]
[422239638,1778745040000,-97.23829024,0.00013628,2]
[422239640,1778745040000,-252426.84275907,0.00013628,2]
[422239642,1778745040000,-500.0,0.00013646,2]
[422239652,1778745040000,-154.49,0.00013699,2]
[422239644,1778745040000,-500.0,0.00013698,2]
[422239639,1778745040000,-299.54,0.00013628,2]
[422239645,1778745040000,-500.0,0.00013698,2]
[422239669,1778745040000,-500.0,0.00013799,2]
[422239647,1778745040000,-500.0,0.00013698,2]
[422239649,1778745040000,-581.44733501,0.00013698,2]
[422239641,1778745040000,-172.48491608,0.00013636,2]
[422239646,1778745040000,-500.0,0.00013698,2]
[422239672,1778745040000,-500.0,0.00013799,2]
[422239663,1778745040000,-327213.1896005,0.00013761,2]
[422239668,1778745040000,-500.0,0.00013799,2]
[422239692,1778745040000,-21487.3185416,0.00013899,2]
[422239689,1778745040000,-13608.7486967,0.00013898,2]
[422239690,1778745040000,-343389.0551184,0.00013898,2]
[422239687,1778745040000,-512.57749196,0.00013896,2]
[422239696,1778745040000,-164.28,0.00014,2]
[422239694,1778745040000,-2900.0,0.000139,5]
[422239695,1778745040000,-166.66,0.00013973,2]
[422239699,1778745040000,-500.0,0.00014016,2]
[422239698,1778745040000,-500.0,0.00014016,2]
[422239702,1778745040000,-500.0,0.00014016,2]
[422239666,1778745040000,-500.0,0.00013799,2]
[422239701,1778745040000,-501.98442296,0.00014016,2]
[422239704,1778745040000,-637.10892931,0.00014016,2]
[422239703,1778745040000,-500.0,0.00014016,2]
[422239705,1778745040000,-227.26,0.00014064,2]
[422239688,1778745040000,-514.31121691,0.00013896,2]
[422239697,1778745040000,-250.0,0.00014,2]
[422239700,1778745040000,-500.0,0.00014016,2]
[422239693,1778745040000,-161220.5780102,0.00013899,2]
[422239671,1778745040000,-500.0,0.00013799,2]
[422239691,1778745040000,-69485.3346977,0.00013898,2]
[422239670,1778745040000,-500.0,0.00013799,2]
[422239685,1778745040000,-500.0,0.00013896,2]
[422239674,1778745040000,-500.0,0.00013799,2]
[422239676,1778745040000,-500.0,0.00013799,2]
[422239681,1778745040000,-509.28723594,0.00013799,2]
[422239675,1778745040000,-500.0,0.00013799,2]
[422239682,1778745040000,-2200.0,0.000138,5]
[422239680,1778745040000,-500.0,0.00013799,2]
[422239679,1778745040000,-500.0,0.00013799,2]
[422239684,1778745040000,-166.66,0.00013836,2]
[422239678,1778745040000,-500.0,0.00013799,2]
[422239686,1778745040000,-500.0,0.00013896,2]
[422239677,1778745040000,-500.0,0.00013799,2]
[422239683,1778745040000,-1680.0,0.00013812,2]
[422239744,1778745041000,-500.0,0.00014116,2]
[422239752,1778745041000,-150.12,0.00014143,2]
[422239743,1778745041000,-500.0,0.00014116,2]
[422239742,1778745041000,-500.0,0.00014116,2]
[422239733,1778745041000,-500.0,0.00014116,2]
[422239740,1778745041000,-500.0,0.00014116,2]
[422239734,1778745041000,-500.0,0.00014116,2]
[422239732,1778745041000,-500.0,0.00014116,2]
[422239751,1778745041000,-473.01962848,0.00014116,2]
[422239738,1778745041000,-500.0,0.00014116,2]
[422239741,1778745041000,-500.0,0.00014116,2]
[422239750,1778745041000,-310.93733253,0.00014116,2]
[422239762,1778745041000,-267.59261643,0.00014449,2]
[422239748,1778745041000,-508.81029755,0.00014116,2]
[422239749,1778745041000,-500.0,0.00014116,2]
[422239747,1778745041000,-500.0,0.00014116,2]
[422239746,1778745041000,-500.0,0.00014116,2]
[422239753,1778745041000,-152.0,0.00014162,2]
[422239764,1778745041000,-150.0,0.00014449,2]
[422239763,1778745041000,-340.18155438,0.00014449,2]
[422239765,1778745041000,-150.0,0.00014449,2]
[422239754,1778745041000,-166.66,0.00014247,2]
[422239759,1778745041000,-500.0,0.00014449,2]
[422239757,1778745041000,-2000.0,0.00014418,2]
[422239736,1778745041000,-500.0,0.00014116,2]
[422239745,1778745041000,-500.0,0.00014116,2]
[422239739,1778745041000,-399.11389767,0.00014116,2]
[422239756,1778745041000,-166.66,0.00014384,2]
[422239737,1778745041000,-500.0,0.00014116,2]
[422239709,1778745041000,-2500.0,0.00014109,2]
[422239706,1778745041000,-2500.0,0.00014109,2]
[422239707,1778745041000,-2500.0,0.00014109,2]
[422239708,1778745041000,-2500.0,0.00014109,2]
[422239721,1778745041000,-501.34591019,0.00014116,2]
[422239711,1778745041000,-300.0,0.00014109,2]
[422239712,1778745041000,-300.0,0.00014109,2]
[422239717,1778745041000,-500.0,0.00014115,2]
[422239716,1778745041000,-166.66,0.0001411,2]
[422239715,1778745041000,-300.0,0.00014109,2]
[422239718,1778745041000,-500.0,0.00014115,2]
[422239714,1778745041000,-300.0,0.00014109,2]
[422239713,1778745041000,-300.0,0.00014109,2]
[422239710,1778745041000,-2500.0,0.00014109,2]
[422239719,1778745041000,-500.0,0.00014116,2]
[422239720,1778745041000,-501.26891246,0.00014116,2]
[422239723,1778745041000,-500.0,0.00014116,2]
[422239727,1778745041000,-500.0,0.00014116,2]
[422239729,1778745041000,-500.0,0.00014116,2]
[422239724,1778745041000,-500.0,0.00014116,2]
[422239726,1778745041000,-500.0,0.00014116,2]
[422239725,1778745041000,-500.0,0.00014116,2]
[422239728,1778745041000,-500.0,0.00014116,2]
[422239730,1778745041000,-500.0,0.00014116,2]
[422239731,1778745041000,-500.0,0.00014116,2]
[422239735,1778745041000,-500.0,0.00014116,2]
[422239755,1778745041000,-150.0,0.00014247,21]
[422239722,1778745041000,-500.0,0.00014116,2]
[422239761,1778745041000,-150.0,0.00014449,2]
[422239798,1778745041000,-900.0,0.00015068,2]
[422239790,1778745041000,-300.0,0.00014999,2]
[422239801,1778745041000,-3542.0,0.00015192,2]
[422239796,1778745041000,-150.0,0.00015,2]
[422239793,1778745041000,-4178.02219016,0.00015,2]
[422239792,1778745041000,-150.0,0.00015,2]
[422239800,1778745041000,-1354.0,0.00015192,2]
[422239803,1778745041000,-1270.0,0.00015192,2]
[422239802,1778745041000,-625.0,0.00015192,2]
[422239813,1778745041000,-152.0,0.00015293,7]
[422239808,1778745041000,-2351.0,0.00015194,2]
[422239804,1778745041000,-150.0,0.00015192,2]
[422239799,1778745041000,-25537.78388364,0.00015174,2]
[422239812,1778745041000,-152.0,0.00015284,7]
[422239805,1778745041000,-1223.0,0.00015192,2]
[422239811,1778745041000,-152.0,0.00015284,7]
[422239810,1778745041000,-219.147543,0.0001523,2]
[422239806,1778745041000,-417.0,0.00015192,2]
[422239817,1778745041000,-1942.0,0.00015541,5]
[422239816,1778745041000,-200.0,0.00015357,2]
[422239819,1778745041000,-227.26,0.00015627,2]
[422239818,1778745041000,-1560.0,0.00015541,5]
[422239815,1778745041000,-1000.0,0.00015357,2]
[422239814,1778745041000,-1101.91063741,0.00015328,2]
[422239820,1778745041000,-160.0,0.00015633,2]
[422239758,1778745041000,-500.0,0.00014449,2]
[422239809,1778745041000,-358.50168,0.0001523,2]
[422239794,1778745041000,-150.0,0.00015,2]
[422239807,1778745041000,-6052.0,0.00015192,2]
[422239797,1778745041000,-2210.41753017,0.00015,2]
[422239791,1778745041000,-394.86,0.00015,2]
[422239760,1778745041000,-500.0,0.00014449,2]
[422239766,1778745041000,-150.0,0.00014449,2]
[422239775,1778745041000,-358.0,0.00014781,2]
[422239768,1778745041000,-173.38068319,0.00014449,2]
[422239769,1778745041000,-250.0,0.00014463,2]
[422239776,1778745041000,-22503.6364065,0.00014799,2]
[422239770,1778745041000,-1101.91063741,0.00014532,2]
[422239773,1778745041000,-255.0,0.00014648,2]
[422239774,1778745041000,-197.650267,0.00014775,2]
[422239772,1778745041000,-419.83398401,0.00014628,2]
[422239771,1778745041000,-175.0,0.00014582,2]
[422239778,1778745041000,-366.0,0.00014828,2]
[422239767,1778745041000,-150.0,0.00014449,2]
[422239777,1778745041000,-6111.0,0.00014816,2]
[422239795,1778745041000,-21659.16403148,0.00015,2]
[422239786,1778745041000,-166.85,0.00014932,2]
[422239789,1778745041000,-300.0,0.00014999,2]
[422239783,1778745041000,-192.02289105,0.000149,2]
[422239781,1778745041000,-358.0,0.00014863,2]
[422239784,1778745041000,-358.0,0.00014901,2]
[422239785,1778745041000,-358.0,0.00014932,2]
[422239780,1778745041000,-10000.0,0.0001485,2]
[422239779,1778745041000,-1125.324,0.0001483,2]
[422239788,1778745041000,-358.0,0.0001499,2]
[422239787,1778745041000,-358.0,0.00014971,2]
[422239782,1778745041000,-358.0,0.00014873,2]
[422239840,1778745042000,-151.0,0.00015726,2]
[422239844,1778745042000,-151.0,0.00015726,2]
[422239846,1778745042000,-151.0,0.00015726,2]
[422239851,1778745042000,-152.0,0.00015726,2]
[422239842,1778745042000,-151.0,0.00015726,2]
[422239845,1778745042000,-151.0,0.00015726,2]
[422239850,1778745042000,-151.0,0.00015726,2]
[422239847,1778745042000,-152.0,0.00015726,2]
[422239854,1778745042000,-152.0,0.00015726,2]
[422239848,1778745042000,-151.0,0.00015726,2]
[422239853,1778745042000,-151.0,0.00015726,2]
[422239852,1778745042000,-151.0,0.00015726,2]
[422239856,1778745042000,-152.0,0.00015726,2]
[422239855,1778745042000,-151.0,0.00015726,2]
[422239858,1778745042000,-152.0,0.00015726,2]
[422239843,1778745042000,-152.0,0.00015726,2]
[422239857,1778745042000,-151.0,0.00015726,2]
[422239849,1778745042000,-152.0,0.00015726,2]
[422239841,1778745042000,-151.0,0.00015726,2]
[422239835,1778745042000,-227.58457571,0.00015726,2]
[422239831,1778745042000,-151.0,0.00015726,2]
[422239860,1778745042000,-152.0,0.00015726,2]
[422239825,1778745042000,-1014.0,0.00015694,2]
[422239821,1778745042000,-491.298959,0.00015633,2]
[422239822,1778745042000,-822.597919,0.00015633,2]
[422239823,1778745042000,-3850.0,0.00015694,2]
[422239824,1778745042000,-627.0,0.00015694,2]
[422239826,1778745042000,-500.0,0.00015726,2]
[422239838,1778745042000,-151.0,0.00015726,2]
[422239837,1778745042000,-151.0,0.00015726,2]
[422239836,1778745042000,-151.0,0.00015726,2]
[422239829,1778745042000,-1328.27659266,0.00015726,2]